fUSD/lending_fUSD_20240714
["ID","MTS","AMOUNT","RATE_DAILY","PERIOD"]
[332120605,1720972263424,-500.0,0.00013972,2]
[332120606,1720972263435,-500.0,0.00013972,2]
[332120607,1720972263445,-500.0,0.00013972,2]
[332120608,1720972263455,-500.0,0.00013972,2]
[332120609,1720972263464,-841.04,0.00013972,2]
[332120610,1720972263474,-778.41,0.00013972,2]
[332120611,1720972263484,-769.2,0.00013972,2]
[332120612,1720972263493,-801.33,0.00013972,2]
[332120613,1720972263502,-500.0,0.00013972,2]
[332120614,1720972263512,-500.0,0.00013972,2]
[332120615,1720972263522,-538.37,0.00013972,2]
[332120616,1720972263532,-277.89,0.00013972,2]
[332120617,1720972263542,-500.0,0.00013972,2]
[332120618,1720972263552,-432.48271287,0.00013972,2]
[332120619,1720972263561,-500.0,0.00013972,2]
[332120620,1720972263570,-500.0,0.00013972,2]
[332120621,1720972263579,-575.15,0.00013972,2]
[332120622,1720972263588,-520.26,0.00013972,2]
[332120623,1720972263598,-500.0,0.00013972,2]
[332120624,1720972263608,-500.0,0.00013972,2]
[332120625,1720972263617,-500.0,0.00013972,2]
[332120626,1720972263627,-500.0,0.00013972,2]
[332120627,1720972263636,-500.0,0.00013972,2]
[332120628,1720972263645,-563.38,0.00013972,2]
[332120629,1720972263654,-599.4,0.00013972,2]
[332120630,1720972263664,-585.7,0.00013972,2]
[332120631,1720972263674,-500.0,0.00013972,2]
[332120632,1720972263684,-500.0,0.00013972,2]
[332120633,1720972263695,-500.0,0.00013972,2]
[332120634,1720972263705,-500.0,0.00013972,2]
[332120635,1720972263714,-585.99489641,0.00013972,2]
[332120636,1720972263723,-500.0,0.00013972,2]
[332120637,1720972263733,-636.43,0.00013972,2]
[332120638,1720972263743,-554.41,0.00013972,2]
[332120639,1720972263753,-500.0,0.00013972,2]
[332120640,1720972263763,-500.0,0.00013972,2]
[332120641,1720972263773,-663.91,0.00013972,2]
[332120642,1720972263782,-500.0,0.00013972,2]
[332120643,1720972263791,-500.0,0.00013972,2]
[332120644,1720972263800,-500.0,0.00013972,2]
[332120645,1720972263810,-500.0,0.00013972,2]
[332120646,1720972263819,-500.0,0.00013972,2]
[332120647,1720972263828,-737.13,0.00013972,2]
[332120648,1720972263838,-500.0,0.00013972,2]
[332120649,1720972263848,-500.0,0.00013972,2]
[332120650,1720972263858,-500.0,0.00013972,2]
[332120651,1720972263867,-537.97,0.00013972,2]
[332120652,1720972263876,-500.0,0.00013972,2]
[332120653,1720972263887,-500.0,0.00013972,2]
[332120654,1720972263897,-500.0,0.00013972,2]
[332120655,1720972263906,-500.0,0.00013972,2]
[332120656,1720972263916,-500.0,0.00013972,2]
[332120657,1720972263926,-500.0,0.00013972,2]
[332120658,1720972263936,-500.0,0.00013972,2]
[332120659,1720972263951,-583.55,0.00013972,2]
[332120660,1720972263968,-500.0,0.00013972,2]
[332120661,1720972263983,-500.0,0.00013972,2]
[332120662,1720972263996,-672.18,0.00013972,2]
[332120663,1720972264011,-500.0,0.00013972,2]
[332120664,1720972264026,-949.45,0.00013972,2]
[332120665,1720972264041,-500.0,0.00013972,2]
[332120666,1720972264056,-500.0,0.00013972,2]
[332120667,1720972264072,-769.77,0.00013972,2]
[332120668,1720972264086,-748.65,0.00013972,2]
[332120669,1720972264100,-500.0,0.00013972,2]
[332120670,1720972264115,-500.0,0.00013972,2]
[332120671,1720972264129,-532.85,0.00013972,2]
[332120672,1720972264141,-500.0,0.00013972,2]
[332120673,1720972264154,-500.0,0.00013972,2]
[332120674,1720972264171,-1125.37,0.00013972,2]
[332120675,1720972264185,-500.0,0.00013972,2]
[332120676,1720972264200,-653.85,0.00013972,2]
[332120677,1720972264216,-500.0,0.00013972,2]
[332120678,1720972264230,-545.27,0.00013972,2]
[332120679,1720972264242,-500.0,0.00013972,2]
[332120680,1720972264254,-500.0,0.00013972,2]
[332120681,1720972264268,-500.0,0.00013972,2]
[332120682,1720972264283,-500.0,0.00013972,2]
[332120683,1720972264294,-500.0,0.00013972,2]
[332120684,1720972264309,-500.0,0.00013972,2]
[332120685,1720972264324,-500.0,0.00013972,2]
[332120686,1720972264336,-533.27,0.00013972,2]
[332120687,1720972264348,-5364.37,0.00013972,2]
[332120688,1720972264363,-500.0,0.00013972,2]
[332120689,1720972264376,-500.0,0.00013972,2]
[332120690,1720972264389,-500.0,0.00013972,2]
[332120691,1720972264402,-604.33,0.00013972,2]
[332120692,1720972264417,-500.0,0.00013972,2]
[332120693,1720972264429,-500.0,0.00013972,2]
[332120694,1720972264444,-500.0,0.00013972,2]
[332120695,1720972264457,-500.0,0.00013972,2]
[332120696,1720972264469,-500.0,0.00013972,2]
[332120697,1720972264481,-500.0,0.00013972,2]
[332120698,1720972264494,-500.0,0.00013972,2]
[332120699,1720972264507,-500.0,0.00013972,2]
[332120700,1720972264520,-500.0,0.00013972,2]
[332120701,1720972264533,-500.0,0.00013972,2]
[332120702,1720972264547,-500.0,0.00013972,2]
[332120703,1720972264559,-500.0,0.00013972,2]
[332120704,1720972264572,-500.0,0.00013972,2]
[332120705,1720972264584,-1563.38,0.00013972,2]
[332120706,1720972264596,-500.0,0.00013972,2]
[332120707,1720972264609,-500.0,0.00013972,2]
[332120708,1720972264623,-500.0,0.00013972,2]
[332120709,1720972264635,-500.0,0.00013972,2]
[332120710,1720972264649,-632.45,0.00013972,2]
[332120711,1720972264663,-870.24,0.00013972,2]
[332120712,1720972264676,-795.98,0.00013972,2]
[332120713,1720972264689,-811.64,0.00013972,2]
[332120714,1720972264703,-1406.8,0.00013972,2]
[332120715,1720972264716,-500.0,0.00013972,2]
[332120716,1720972264730,-500.0,0.00013972,2]
[332120717,1720972264744,-500.0,0.00013972,2]
[332120718,1720972264758,-1134.57,0.00013972,2]
[332120719,1720972264772,-500.0,0.00013972,2]
[332120720,1720972264784,-500.0,0.00013972,2]
[332120721,1720972264798,-500.0,0.00013972,2]
[332120722,1720972264811,-500.0,0.00013972,2]
[332120723,1720972264823,-500.0,0.00013972,2]
[332120724,1720972264837,-500.0,0.00013972,2]
[332120725,1720972264850,-500.0,0.00013972,2]
[332120726,1720972264863,-500.0,0.00013972,2]
[332120727,1720972264876,-500.0,0.00013972,2]
[332120728,1720972264889,-863.4,0.00013972,2]
[332120729,1720972264903,-743.16,0.00013972,2]
[332120730,1720972264915,-500.0,0.00013972,2]
[332120731,1720972264929,-500.0,0.00013972,2]
[332120732,1720972264942,-716.88,0.00013972,2]
[332120733,1720972264954,-2047.74,0.00013972,2]
[332120734,1720972264966,-567.13,0.00013972,2]
[332120735,1720972264981,-1058.64,0.00013972,2]
[332120736,1720972264993,-500.0,0.00013972,2]
[332120737,1720972265007,-500.0,0.00013972,2]
[332120738,1720972265020,-945.97,0.00013972,2]
[332120739,1720972265035,-500.0,0.00013972,2]
[332120740,1720972265048,-1598.27,0.00013972,2]
[332120741,1720972265060,-532.64,0.00013972,2]
[332120742,1720972265073,-500.0,0.00013972,2]
[332120743,1720972265085,-6027.45,0.00013972,2]
[332120744,1720972265097,-542.29634083,0.00013972,2]
[332120745,1720972265110,-904.14,0.00013972,2]
[332120746,1720972265122,-577.69,0.00013972,2]
[332120747,1720972265135,-219.214178,0.00013972,2]
[332120748,1720972265147,-500.0,0.00013972,2]
[332120749,1720972265160,-1038.09,0.00013972,2]
[332120750,1720972265173,-500.0,0.00013972,2]
[332120751,1720972265185,-500.0,0.00013972,2]
[332120752,1720972265197,-219.214178,0.00013972,2]
[332120753,1720972265209,-500.0,0.00013972,2]
[332120754,1720972265221,-500.0,0.00013972,2]
[332120755,1720972265233,-719.25,0.00013972,2]
[332120756,1720972265246,-500.0,0.00013972,2]
[332120757,1720972265259,-500.0,0.00013972,2]
[332120758,1720972265272,-254.76292017,0.00013972,2]
[332120759,1720972265285,-500.0,0.00013972,2]
[332120760,1720972265297,-546.02,0.00013972,2]
[332120761,1720972265310,-933.38,0.00013972,2]
[332120762,1720972265323,-716.32,0.00013972,2]
[332120763,1720972265336,-500.0,0.00013972,2]
[332120764,1720972265349,-1477.43,0.00013972,2]
[332120765,1720972265363,-500.0,0.00013972,2]
[332120766,1720972265376,-500.0,0.00013972,2]
[332120767,1720972265388,-728.22,0.00013972,2]
[332120768,1720972265402,-500.0,0.00013972,2]
[332120769,1720972265416,-500.0,0.00013972,2]
[332120770,1720972265429,-500.0,0.00013972,2]
[332120771,1720972265442,-811.27,0.00013972,2]
[332120772,1720972265455,-500.0,0.00013972,2]
[332120773,1720972265467,-623.31,0.00013972,2]
[332120774,1720972265480,-596.59,0.00013972,2]
[332120775,1720972265491,-654.13,0.00013972,2]
[332120776,1720972265503,-500.0,0.00013972,2]
[332120777,1720972265516,-536.31,0.00013972,2]
[332120778,1720972265528,-500.0,0.00013972,2]
[332120779,1720972265541,-566.21,0.00013972,2]
[332120780,1720972265553,-7866.28,0.00013972,2]
[332120781,1720972265566,-839.31,0.00013972,2]
[332120782,1720972265578,-500.0,0.00013972,2]
[332120783,1720972265590,-500.0,0.00013972,2]
[332120784,1720972265603,-151.0,0.00013972,2]
[332120785,1720972265615,-500.0,0.00013972,2]
[332120786,1720972265628,-500.0,0.00013972,2]
[332120787,1720972265640,-500.0,0.00013972,2]
[332120788,1720972265653,-1238.93,0.00013972,2]
[332120789,1720972265664,-500.0,0.00013972,2]
[332120790,1720972265676,-973.98,0.00013972,2]
[332120791,1720972265688,-500.0,0.00013972,2]
[332120792,1720972265701,-500.0,0.00013972,2]
[332120793,1720972265713,-500.0,0.00013972,2]
[332120794,1720972265725,-500.0,0.00013972,2]
[332120795,1720972265738,-500.0,0.00013972,2]
[332120796,1720972265751,-1074.12,0.00013972,2]
[332120797,1720972265762,-500.0,0.00013972,2]
[332120798,1720972265772,-500.0,0.00013972,2]
[332120799,1720972265782,-500.0,0.00013972,2]
[332120800,1720972265791,-500.0,0.00013972,2]
[332120801,1720972265800,-500.0,0.00013972,2]
[332120802,1720972266053,-500.0,0.00013972,2]
[332120803,1720972266066,-500.0,0.00013972,2]
[332120804,1720972266076,-902.88,0.00013972,2]
[332120805,1720972266086,-500.0,0.00013972,2]
[332120806,1720972266095,-500.0,0.00013972,2]
[332120807,1720972266105,-500.0,0.00013972,2]
[332120808,1720972266115,-500.0,0.00013972,2]
[332120809,1720972266125,-500.0,0.00013972,2]
[332120810,1720972266135,-500.0,0.00013972,2]
[332120811,1720972266145,-500.0,0.00013972,2]
[332120812,1720972266154,-779.1,0.00013972,2]
[332120813,1720972266163,-500.0,0.00013972,2]
[332120814,1720972266172,-614.83,0.00013972,2]
[332120815,1720972266182,-571.88,0.00013972,2]
[332120816,1720972266191,-500.0,0.00013972,2]
[332120817,1720972266200,-500.0,0.00013972,2]
[332120818,1720972266210,-500.0,0.00013972,2]
[332120819,1720972266220,-1413.29,0.00013972,2]
[332120820,1720972266229,-500.0,0.00013972,2]
[332120821,1720972266238,-1000.0,0.00013973,5]
[332120822,1720972266248,-533.76,0.00013973,2]
[332120823,1720972266257,-500.0,0.00013973,2]
[332120824,1720972266266,-500.0,0.00013973,2]
[332120825,1720972266276,-500.0,0.00013973,2]
[332120826,1720972266285,-500.0,0.00013973,2]
[332120827,1720972266295,-159.3216,0.00013973,2]
[332120828,1720972266305,-159.3216,0.00013973,2]
[332120829,1720972266314,-2000.0,0.00013974,2]
[332120830,1720972266324,-200.0,0.00013974,2]
[332120831,1720972266334,-242.70193871,0.00013989,2]
[332120832,1720972266344,-219.214178,0.0001399,2]
[332120833,1720972266353,-219.214179,0.0001399,2]
[332120834,1720972266366,-67763.9790014,0.0001399,2]
[332120835,1720972266376,-56939.2202656,0.0001399,2]
[332120836,1720972266386,-46114.4615298,0.0001399,2]
[332120837,1720972266395,-151.0,0.0001399,2]
[332120838,1720972266406,-3541.1729088,0.0001399,2]
[332120839,1720972266416,-2975.4985941,0.0001399,2]
[332120840,1720972266426,-2409.8242795,0.0001399,2]
[332120841,1720972266435,-39632.42757628,0.00013999,2]
[332120842,1720972266446,-369678.55503171,0.00013999,2]
[332120843,1720972266456,-151.0,0.00013999,2]
[332120844,1720972266466,-2856860.11163993,0.00014,2]
[332120845,1720972268181,-313.14,0.00013698,2]
[332120846,1720972268193,-186.86,0.00013698,2]
[332120847,1720972268202,-442.35,0.00013698,2]
[332120848,1720972268480,-57.65,0.00013698,2]
[332120849,1720972268490,-500.0,0.00013753,2]
[332120850,1720972268500,-596.94,0.00013753,2]
[332120851,1720972268510,-151.477,0.00013753,2]
[332120852,1720972268520,-500.0,0.00013808,2]
[332120853,1720972268529,-75.933,0.00013863,2]
[332120866,1720972615164,-402.52,0.00010914,2]
[332120868,1720972651384,483.68782806,0.00027,120]
[332120876,1720972866253,1000.0,0.00027,120]
[332120883,1720973072085,1000.0,0.00027,120]
[332120884,1720973077057,1000.0,0.00027,120]
[332120886,1720973084508,1872.04813342,0.00027,120]
[332120888,1720973089248,361.49373725,0.00027,120]
[332120913,1720973240423,500.0,0.00027,120]
[332120940,1720973381421,152.72044471,0.00027,120]
[332120949,1720973432058,-302.49420379,0.00011098,2]
[332120950,1720973432069,-264.64579621,0.00011098,2]
[332120951,1720973432112,-186.93417102,0.00011098,2]
[332120952,1720973432121,-430.00947767,0.00011098,2]
[332120953,1720973432131,-250.0,0.00012463,2]
[332120954,1720973432142,-150.0,0.00012463,2]
[332120955,1720973432152,-159.93,0.00012532,2]
[332120956,1720973432162,-9198.68,0.00012532,2]
[332120957,1720973432173,-300.0,0.00012571,2]
[332120958,1720973432183,-1000.0,0.00012571,2]
[332120959,1720973432192,-170.68,0.00012572,2]
[332120960,1720973432202,-150.0,0.000126,2]
[332120961,1720973432212,-250.0,0.00012726,2]
[332120962,1720973432222,-2086.77,0.00012849,2]
[332120963,1720973432232,-600.0,0.0001286,2]
[332120964,1720973432242,-499.99,0.0001286,2]
[332120965,1720973432251,-173.37,0.00012909,2]
[332120966,1720973432261,-7778.0,0.00012948,2]
[332120967,1720973432270,-236.37,0.00012955,2]
[332120968,1720973432279,-220.13821281,0.00013,2]
[332120969,1720973432293,-1029.86178719,0.00013,2]
[332120970,1720973432302,-402.52,0.00013178,2]
[332120971,1720973432312,-600.0,0.00013396,2]
[332120972,1720973432321,-658.06544597,0.00013416,2]
[332120973,1720973432334,-684.71908266,0.00013416,2]
[332120974,1720973432357,-741.27347137,0.00013416,2]
[332120975,1720973432366,-212.6008,0.00013498,2]
[332120976,1720973432375,-259.1092,0.00013498,2]
[332120977,1720973432384,-1039.95240379,0.00013586,2]
[332120978,1720973432395,-1068.28802596,0.00013586,2]
[332120979,1720973432406,-1981.99189209,0.00013588,2]
[332120980,1720973432415,-150.0,0.00013597,2]
[332120981,1720973432425,-4014.20140716,0.00013598,2]
[332120982,1720973432447,-537.02419284,0.00013598,2]
[332120983,1720973432457,-761.8685,0.00013598,2]
[332120984,1720973432465,-1168.3665,0.00013598,2]
[332120985,1720973432474,-530.24080716,0.00013598,2]
[332120986,1720973432486,-469.75919284,0.00013598,2]
[332120987,1720973432495,-211.34199,0.00013598,2]
[332120988,1720973432510,-669.94125223,0.00013598,2]
[332120989,1720973432521,-438.97877864,0.00013598,2]
[332120990,1720973432535,-993.16479485,0.00013598,2]
[332120991,1720973432547,-865.46028817,0.00013598,2]
[332120992,1720973432559,-857.25,0.00013598,2]
[332120993,1720973432571,-2287.02469611,0.00013598,2]
[332120994,1720973432581,-251.45261847,0.00013598,2]
[332120995,1720973432593,-248.54738153,0.00013598,2]
[332120996,1720973432602,-292.46183837,0.00013598,2]
[332120997,1720973432615,-8311.72992793,0.00013598,2]
[332120998,1720973432632,-32518.31119521,0.00013598,2]
[332120999,1720973432643,-28777.82793849,0.00013598,2]
[332121000,1720973432652,-1000.0,0.00013598,2]
[332121001,1720973432661,-2500.0,0.00013598,2]
[332121002,1720973432670,-6812.92610141,0.00013653,2]
[332121003,1720973432682,-502.90722895,0.00013653,2]
[332121024,1720973438147,-184.16666964,0.00013653,2]
[332121025,1720973438157,-552.85,0.00013698,2]
[332121026,1720973438166,-500.0,0.00013698,2]
[332121027,1720973438176,-500.0,0.00013698,2]
[332121028,1720973438185,-773.67,0.00013698,2]
[332121029,1720973438195,-500.0,0.00013698,2]
[332121030,1720973438205,-500.0,0.00013698,2]
[332121031,1720973438214,-500.0,0.00013698,2]
[332121032,1720973438224,-314.92522925,0.00013698,2]
[332121033,1720973438234,-500.0,0.00013698,2]
[332121034,1720973438244,-500.0,0.00013698,2]
[332121035,1720973438254,-500.0,0.00013698,2]
[332121036,1720973438264,-500.0,0.00013698,2]
[332121037,1720973438274,-500.0,0.00013698,2]
[332121038,1720973438284,-500.0,0.00013698,2]
[332121039,1720973438294,-500.0,0.00013698,2]
[332121040,1720973438304,-649.07,0.00013698,2]
[332121041,1720973438315,-500.0,0.00013698,2]
[332121042,1720973438324,-500.0,0.00013698,2]
[332121043,1720973438334,-500.0,0.00013698,2]
[332121044,1720973438344,-500.0,0.00013698,2]
[332121045,1720973438353,-500.0,0.00013698,2]
[332121046,1720973438365,-500.0,0.00013698,2]
[332121047,1720973438374,-545.33,0.00013698,2]
[332121048,1720973438383,-113.83596224,0.00013698,2]
[332121049,1720973438395,-386.16403776,0.00013698,2]
[332121050,1720973438404,-82.33760228,0.00013698,2]
[332121051,1720973438415,-319.8,0.00013698,2]
[332121052,1720973438426,-97.86239772,0.00013698,2]
[332121053,1720973438436,-500.0,0.00013698,2]
[332121054,1720973438445,-500.0,0.00013698,2]
[332121055,1720973438455,-422.53651421,0.00013698,2]
[332121056,1720973438518,-77.46348579,0.00013698,2]
[332121057,1720973438527,-172.59,0.00013698,2]
[332121058,1720973438537,-500.0,0.00013698,2]
[332121060,1720973438547,-500.0,0.00013698,2]
[332121061,1720973438557,-500.0,0.00013698,2]
[332121062,1720973438566,-500.0,0.00013698,2]
[332121063,1720973438576,-500.0,0.00013698,2]
[332121064,1720973438585,-500.0,0.00013698,2]
[332121065,1720973438595,-500.0,0.00013698,2]
[332121066,1720973438604,-343.68320269,0.00013698,2]
[332121067,1720973438617,-156.31679731,0.00013698,2]
[332121068,1720973438627,-500.0,0.00013698,2]
[332121069,1720973438636,-500.0,0.00013698,2]
[332121070,1720973438646,-500.0,0.00013698,2]
[332121071,1720973438655,-500.0,0.00013698,2]
[332121072,1720973438665,-500.0,0.00013698,2]
[332121073,1720973438675,-500.0,0.00013698,2]
[332121075,1720973438684,-500.0,0.00013698,2]
[332121077,1720973438694,-500.0,0.00013698,2]
[332121079,1720973438704,-647.10870412,0.00013698,2]
[332121080,1720973438713,-500.0,0.00013698,2]
[332121081,1720973438724,-500.0,0.00013698,2]
[332121082,1720973438736,-500.0,0.00013698,2]
[332121083,1720973438746,-500.0,0.00013698,2]
[332121084,1720973438755,-500.0,0.00013698,2]
[332121085,1720973438765,-500.0,0.00013698,2]
[332121086,1720973438776,-500.0,0.00013698,2]
[332121087,1720973438785,-500.0,0.00013698,2]
[332121088,1720973438795,-500.0,0.00013698,2]
[332121089,1720973438806,-500.0,0.00013698,2]
[332121090,1720973438815,-500.0,0.00013698,2]
[332121092,1720973438824,-675.02874085,0.00013698,2]
[332121266,1720973440521,-57.89125915,0.00013698,2]
[332121268,1720973440530,-500.0,0.00013698,2]
[332121270,1720973440539,-500.0,0.00013698,2]
[332121272,1720973440549,-577.33,0.00013698,2]
[332121274,1720973440558,-500.0,0.00013698,2]
[332121276,1720973440568,-844.03,0.00013698,2]
[332121278,1720973440577,-177.89006458,0.00013698,2]
[332121280,1720973440586,-500.0,0.00013698,2]
[332121282,1720973440595,-256.35867627,0.00013698,2]
[332121976,1720973476852,411.18,0.00010874,2]
[332121978,1720973528415,332.80659182,0.00010874,2]
[332121979,1720973567995,500.0,0.00010874,2]
[332121980,1720973568348,680.0,0.00010874,2]
[332121994,1720974096318,414.73,0.00010632,2]
[332122011,1720974483604,558.97659208,0.0001,2]
[332122023,1720974576522,559.648773,0.00010997,2]
[332122028,1720974632816,-500.0,0.00011097,2]
[332122029,1720974632872,-1640.89,0.00011097,2]
[332122030,1720974633042,-322.50397585,0.00011097,2]
[332122031,1720974633054,-1707.59528903,0.00011097,2]
[332122032,1720974633065,-4018.88858807,0.00011097,2]
[332122033,1720974633152,-261.57088958,0.00011097,2]
[332122059,1720974638304,-563.31326908,0.00011097,2]
[332122060,1720974638315,-171.63641268,0.00011097,2]
[332122061,1720974638324,-300.0,0.00011097,2]
[332122062,1720974638333,-300.0,0.00011097,2]
[332122063,1720974638342,-43.36358732,0.00011098,2]
[332122064,1720974638353,-1156.58858547,0.00011098,2]
[332122065,1720974638364,-841.67496685,0.00011098,2]
[332122066,1720974638379,-145.47055071,0.00011098,2]
[332122067,1720974638389,-254.73938385,0.00011098,2]
[332122068,1720974638399,-559.60364109,0.00011098,2]
[332122069,1720974638408,-155.0,0.00011098,2]
[332122070,1720974638417,-229.12197055,0.00011098,2]
[332122071,1720974638427,-314.12127615,0.00011098,2]
[332122072,1720974638435,-202.46230541,0.00011098,2]
[332122073,1720974638445,-200.61725219,0.00011098,2]
[332122078,1720974638665,-155.0,0.00011098,2]
[332122079,1720974638675,-975.40375746,0.00011098,2]
[332122081,1720974638685,-420.0,0.00012193,2]
[332122083,1720974638694,-321.0,0.00012207,2]
[332122085,1720974638703,-6702.21453139,0.00012437,2]
[332122119,1720974638967,-8005.88758489,0.00012437,2]
[332122122,1720974638979,-9532.89788372,0.00012437,2]
[332122123,1720974638989,-170.68,0.00012544,2]
[332122125,1720974638998,-250.0,0.00012575,2]
[332122127,1720974639008,-1000.0,0.0001258,2]
[332122129,1720974639017,-499.99,0.00012581,2]
[332122131,1720974639026,-185.95,0.00012585,2]
[332122133,1720974639035,-150.0,0.000126,2]
[332122135,1720974639045,-1000.0,0.00012634,2]
[332122137,1720974639054,-150.99,0.00012634,2]
[332122139,1720974639063,-265.09,0.00012683,2]
[332122141,1720974639072,-165.09,0.00012757,2]
[332122143,1720974639082,-150.0,0.00012757,2]
[332122145,1720974639091,-150.0,0.00012878,2]
[332122147,1720974639102,-165.09,0.00012878,2]
[332122149,1720974639111,-300.0,0.00012878,2]
[332122151,1720974639122,-414.73,0.00012896,2]
[332122153,1720974639133,-529.07,0.00012978,2]
[332122155,1720974639142,-260.04977456,0.00013124,2]
[332122157,1720974639152,-1000.0,0.00013289,2]
[332122159,1720974639162,-690.00328514,0.00013329,2]
[332122161,1720974639171,-587.0,0.00013398,2]
[332122163,1720974639180,-1322.77749777,0.00013472,2]
[332122165,1720974639190,-186.42838529,0.000135,2]
[332122167,1720974639200,-155.43704552,0.00013516,2]
[332122169,1720974639210,-4827.45922203,0.0001355,2]
[332122171,1720974639219,-317.35,0.00013579,2]
[332122173,1720974639229,-150.0,0.00013579,2]
[332122175,1720974639238,-355.25,0.00013579,2]
[332122177,1720974639246,-236.00917099,0.00013596,2]
[332122179,1720974639255,-299.4225,0.00013598,2]
[332122181,1720974639265,-849.51,0.000136,2]
[332122183,1720974639273,-15289.6289,0.00013619,2]
[332122184,1720974639283,-1000.0,0.00013653,2]
[332122186,1720974639294,-834.527,0.00013672,2]
[332122188,1720974639305,-2000.0,0.00013698,2]
[332122190,1720974639314,-200.0,0.00013698,2]
[332122192,1720974639324,-2000.0,0.00013698,2]
[332122194,1720974639333,-200.0,0.00013698,2]
[332122196,1720974639342,-2000.0,0.00013698,2]
[332122198,1720974639351,-200.0,0.00013698,2]
[332122200,1720974639360,-1293.72455,0.00013698,2]
[332122202,1720974639369,-2000.0,0.00013698,2]
[332122204,1720974639380,-200.0,0.00013698,2]
[332122206,1720974639391,-164.27,0.00013699,2]
[332122208,1720974639402,-758.97,0.00013699,2]
[332122210,1720974639411,-250.0,0.00013699,2]
[332122212,1720974639420,-953.64,0.00013699,2]
[332122215,1720974639430,-319.60783131,0.00013702,2]
[332122217,1720974639438,-3271.78277745,0.00013719,2]
[332122219,1720974639447,-1387.8048008,0.00013719,2]
[332122221,1720974639456,-613.93768714,0.00013719,2]
[332122223,1720974639466,-316.0773283,0.00013736,2]
[332122225,1720974639474,-583.81,0.00013751,2]
[332122227,1720974639484,-500.0,0.00013751,2]
[332122229,1720974639493,-500.0,0.00013751,2]
[332122231,1720974639501,-500.0,0.00013751,2]
[332122233,1720974639511,-500.0,0.00013751,2]
[332122234,1720974639520,-500.0,0.00013751,2]
[332122236,1720974639530,-500.0,0.00013751,2]
[332122238,1720974639539,-500.0,0.00013751,2]
[332122241,1720974639548,-500.0,0.00013751,2]
[332122243,1720974639558,-500.0,0.00013751,2]
[332122245,1720974639567,-500.0,0.00013751,2]
[332122247,1720974639576,-500.0,0.00013751,2]
[332122249,1720974639586,-500.0,0.00013751,2]
[332122251,1720974639595,-500.0,0.00013751,2]
[332122253,1720974639604,-500.0,0.00013751,2]
[332122255,1720974639615,-500.0,0.00013751,2]
[332122257,1720974639625,-500.0,0.00013751,2]
[332122259,1720974639635,-500.0,0.00013751,2]
[332122261,1720974639644,-723.21,0.00013751,2]
[332122263,1720974639655,-500.0,0.00013751,2]
[332122265,1720974639665,-519.05,0.00013751,2]
[332122267,1720974639678,-500.0,0.00013751,2]
[332122269,1720974639688,-553.27,0.00013751,2]
[332122272,1720974639699,-808.86,0.00013751,2]
[332122274,1720974639709,-500.0,0.00013751,2]
[332122276,1720974639720,-500.0,0.00013751,2]
[332122278,1720974639730,-500.0,0.00013751,2]
[332122280,1720974639741,-694.35,0.00013751,2]